fUSD/lending_fUSD_20251222
["ID","MTS","AMOUNT","RATE_DAILY","PERIOD"]
[399453902,1766367040394,-500.0,0.00016473,2]
[399453903,1766367040404,-355.04970427,0.00016473,2]
[399453904,1766367040413,-500.0,0.00016473,2]
[399453905,1766367040423,-500.0,0.00016473,2]
[399453906,1766367040432,-580.23256601,0.00016473,2]
[399453907,1766367040442,-500.0,0.00016473,2]
[399453908,1766367040452,-500.0,0.00016473,2]
[399453909,1766367040461,-500.0,0.00016473,2]
[399453910,1766367040470,-500.0,0.00016473,2]
[399453911,1766367040480,-500.0,0.00016473,2]
[399453912,1766367040490,-500.0,0.00016473,2]
[399453913,1766367040499,-500.0,0.00016473,2]
[399453914,1766367040511,-639.72398952,0.00016473,2]
[399453915,1766367040520,-500.0,0.00016473,2]
[399453916,1766367040530,-500.0,0.00016473,2]
[399453917,1766367040540,-160.18818998,0.00016473,2]
[399453918,1766367040551,-500.0,0.00016473,2]
[399453919,1766367040559,-500.0,0.00016473,2]
[399453920,1766367040569,-500.0,0.00016473,2]
[399453921,1766367040579,-500.0,0.00016473,2]
[399453922,1766367040588,-500.0,0.00016473,2]
[399453923,1766367040597,-500.0,0.00016473,2]
[399453924,1766367040606,-500.0,0.00016473,2]
[399453925,1766367040615,-500.0,0.00016473,2]
[399453926,1766367040624,-207.48820699,0.00016473,2]
[399453927,1766367040633,-506.25214638,0.00016473,2]
[399453928,1766367040642,-500.0,0.00016473,2]
[399453929,1766367040652,-500.0,0.00016473,2]
[399453930,1766367040662,-500.0,0.00016473,2]
[399453931,1766367040671,-164.83274193,0.00016473,2]
[399453932,1766367040680,-500.0,0.00016473,2]
[399453933,1766367040689,-530.05316157,0.00016473,2]
[399453934,1766367040698,-500.0,0.00016473,2]
[399453936,1766367040707,-500.0,0.00016473,2]
[399453937,1766367040716,-499.68742722,0.00016473,2]
[399453938,1766367040725,-156.55034948,0.00016473,2]
[399453939,1766367040734,-160.18477965,0.00016473,2]
[399453940,1766367040743,-150.2134934,0.00016473,2]
[399453941,1766367040752,-160.22953259,0.00016473,2]
[399453942,1766367040761,-160.22953204,0.00016473,2]
[399453943,1766367040770,-160.2285992,0.00016473,2]
[399453944,1766367040779,-500.0,0.00016473,2]
[399453945,1766367040788,-500.0,0.00016473,2]
[399453946,1766367040798,-500.19873097,0.00016473,2]
[399453947,1766367040807,-500.0,0.00016473,2]
[399453948,1766367040817,-509.1899532,0.00016473,2]
[399453949,1766367040826,-500.0,0.00016473,2]
[399453950,1766367040836,-500.69670875,0.00016473,2]
[399453951,1766367040845,-500.28148254,0.00016473,2]
[399453952,1766367040854,-500.87119543,0.00016473,2]
[399453953,1766367040863,-500.47037435,0.00016473,2]
[399453954,1766367040872,-500.0,0.00016473,2]
[399453955,1766367040883,-500.0,0.00016473,2]
[399453956,1766367040892,-500.0,0.00016473,2]
[399453957,1766367040902,-500.0,0.00016473,2]
[399453958,1766367040912,-770.91591557,0.000165,2]
[399453959,1766367040921,-2564.98490942,0.0001654,2]
[399453960,1766367040930,-1515.76106222,0.00016619,2]
[399453961,1766367040939,-500.0,0.00016655,2]
[399453962,1766367040948,-500.0,0.00016655,2]
[399453963,1766367040958,-992.97,0.00016713,2]
[399453964,1766367040967,-2564.98490942,0.0001672,2]
[399453965,1766367040977,-250.0,0.00016831,2]
[399453966,1766367040986,-1515.76106222,0.000169,2]
[399453967,1766367040995,-770.91591557,0.000169,2]
[399453968,1766367041004,-845.45362525,0.000169,2]
[399453969,1766367041014,-2564.98490942,0.000169,2]
[399453970,1766367041024,-1263.56980794,0.00016921,2]
[399453971,1766367041033,-27396.24637477,0.00016921,2]
[399453972,1766367041043,-1000.0,0.0001693,2]
[399453973,1766367041052,-1000.0,0.0001693,2]
[399453974,1766367041061,-1000.0,0.0001693,2]
[399453975,1766367041070,-735.272,0.0001693,2]
[399453976,1766367041079,-232.7679899,0.00016973,2]
[399453977,1766367041088,-150.11026087,0.00016973,2]
[399453978,1766367041097,-500.0,0.00016973,2]
[399453979,1766367041106,-602.70420799,0.00016973,2]
[399453980,1766367041115,-150.0,0.00016973,2]
[399453981,1766367041125,-500.0,0.00016989,2]
[399453982,1766367041134,-500.0,0.00016989,2]
[399453983,1766367041143,-999.2,0.0001699,2]
[399453984,1766367041152,-2235.14725565,0.0001699,2]
[399453985,1766367041161,-151.0,0.00016997,2]
[399453986,1766367041170,-300.0,0.00016999,2]
[399453987,1766367041179,-7088537.53992319,0.00017,2]
[399453988,1766367041198,-26959.75029251,0.00017,2]
[399453989,1766367041209,-386.499192,0.00017,2]
[399453990,1766367041220,-588.0,0.00017,2]
[399454003,1766367042830,-168.7067,0.000169,2]
[399454005,1766367042842,-628.3168439,0.000169,2]
[399454007,1766367042854,-174.34048251,0.000169,2]
[399454008,1766367042863,-1020.14851749,0.00017,2]
[399454009,1766367042920,-341.79781216,0.00017,2]
[399454010,1766367042932,-598.69615139,0.00017,2]
[399454011,1766367042944,-1049.20648709,0.00017,2]
[399454012,1766367042955,-500.0,0.00017,2]
[399454109,1766367045764,-256.92797377,0.00016338,2]
[399454110,1766367045774,-3662.56459405,0.00017,2]
[399454257,1766367074264,301.39998813,0.00035616,120]
[399454258,1766367075077,35388.93140489,0.0003561,30]
[399454260,1766367113973,278.9171904,0.0003561,30]
[399454262,1766367124959,806.0511958,0.00035616,30]
[399454263,1766367138559,500.0,9.476e-05,2]
[399454271,1766367178917,214.3964539,0.00035616,30]
[399454272,1766367193766,841.2653,0.0003516,30]
[399454273,1766367241693,152.31,0.00035616,30]
[399454274,1766367252466,172.18,0.00035616,60]
[399454286,1766367328149,153.05,0.00035616,60]
[399454306,1766367524471,1010.49785286,0.0003561,30]
[399454345,1766367551559,2654.292698,7.945e-05,2]
[399454352,1766367628562,260.0,0.00035616,30]
[399454354,1766367693147,160.3,0.0003496,40]
[399454355,1766367693192,651.698,0.0003496,40]
[399454396,1766368030937,188.04,0.00035,30]
[399454405,1766368123839,155.66,7.588e-05,2]
[399454406,1766368123897,155.66,8.536e-05,2]
[399454407,1766368123941,155.66,9.484e-05,2]
[399454475,1766368231702,-153.30827732,9.726e-05,2]
[399454478,1766368231711,-150.0,9.726e-05,2]
[399454480,1766368231720,-150.0,9.726e-05,2]
[399454482,1766368231729,-150.0,9.726e-05,2]
[399454484,1766368231738,-178.65236522,9.726e-05,2]
[399454485,1766368231755,-87.25836807,9.726e-05,2]
[399454487,1766368231765,-152.62355257,9.726e-05,2]
[399454489,1766368231775,-150.0,9.726e-05,2]
[399454491,1766368231786,-153.01224004,9.726e-05,2]
[399454493,1766368231796,-152.2158977,9.726e-05,2]
[399454495,1766368231806,-150.0,9.726e-05,2]
[399454497,1766368231818,-150.0,9.726e-05,2]
[399454499,1766368231827,-53.82753549,9.726e-05,2]
[399454501,1766368231837,-96.17246451,9.726e-05,2]
[399454503,1766368231847,-150.0,9.726e-05,2]
[399454505,1766368231858,-271.53552382,9.726e-05,2]
[399454506,1766368231867,-150.0,9.726e-05,2]
[399454507,1766368231877,-34.04502817,9.726e-05,2]
[399454508,1766368231891,-163.70125989,9.726e-05,2]
[399454509,1766368231900,-150.56367333,9.726e-05,2]
[399454510,1766368231909,-339.6831877,9.746e-05,2]
[399454511,1766368231920,-860.3168123,9.746e-05,2]
[399454512,1766368231930,-300.0,9.746e-05,2]
[399454513,1766368231940,-239701.22860974,9.747e-05,2]
[399454514,1766368231951,-4790.94264816,9.747e-05,2]
[399454515,1766368231980,-304.28914531,9.747e-05,2]
[399454516,1766368231992,-2542.81382997,9.747e-05,2]
[399454521,1766368238039,-495.44626289,9.746e-05,2]
[399454522,1766368238049,-500.0,9.746e-05,2]
[399454523,1766368238059,-352.12047825,9.746e-05,2]
[399454524,1766368238069,-500.0,9.746e-05,2]
[399454525,1766368238079,-500.0,9.746e-05,2]
[399454526,1766368238089,-500.0,9.746e-05,2]
[399454527,1766368238098,-500.0,9.746e-05,2]
[399454528,1766368238108,-500.0,9.746e-05,2]
[399454529,1766368238117,-500.0,9.746e-05,2]
[399454530,1766368238127,-500.0,9.746e-05,2]
[399454531,1766368238137,-19997.48038665,9.747e-05,2]
[399454532,1766368238163,-758.9550397,9.747e-05,2]
[399454533,1766368238202,-731904.29034047,9.747e-05,2]
[399454534,1766368238212,-1200.0,9.813e-05,2]
[399454535,1766368238222,-21404.84,9.814e-05,2]
[399454536,1766368238232,-250.0,9.83e-05,2]
[399454537,1766368238242,-392.83083662,9.839e-05,2]
[399454538,1766368238252,-150.0,9.845e-05,2]
[399454539,1766368238263,-521.37257877,9.845e-05,2]
[399454540,1766368238272,-500.0,9.846e-05,2]
[399454541,1766368238282,-163.6656,9.847e-05,2]
[399454542,1766368238291,-6690.2965,9.847e-05,2]
[399454543,1766368238301,-17203.6951,9.847e-05,2]
[399454544,1766368238310,-2500.0,9.847e-05,2]
[399454545,1766368238320,-521.37257875,9.896e-05,2]
[399454546,1766368238329,-160.3,9.946e-05,2]
[399454547,1766368238338,-651.698,9.946e-05,2]
[399454548,1766368238348,-499.99,9.947e-05,2]
[399454549,1766368238358,-4999.99,9.947e-05,2]
[399454550,1766368238367,-1576.37,9.947e-05,2]
[399454551,1766368238376,-1530.94,9.947e-05,2]
[399454552,1766368238385,-29217.23,9.947e-05,2]
[399454553,1766368238394,-9999.99,9.947e-05,2]
[399454554,1766368238403,-1202.86,9.947e-05,2]
[399454555,1766368238412,-150.99,9.947e-05,2]
[399454556,1766368238422,-1543.91,9.947e-05,2]
[399454557,1766368238431,-999.99,9.947e-05,2]
[399454558,1766368238440,-150.99,9.947e-05,2]
[399454559,1766368238450,-9999.99,9.947e-05,2]
[399454560,1766368238460,-5689.35,9.947e-05,2]
[399454561,1766368238469,-9999.99,9.947e-05,2]
[399454562,1766368238479,-78851.55,9.947e-05,2]
[399454563,1766368238488,-299.99,9.947e-05,2]
[399454564,1766368238497,-57996.95,9.947e-05,2]
[399454565,1766368238507,-9999.99,9.947e-05,2]
[399454566,1766368238516,-9999.99,9.947e-05,2]
[399454567,1766368238526,-9999.99,9.947e-05,2]
[399454568,1766368238536,-500.0,9.947e-05,2]
[399454569,1766368238545,-521.37257875,9.947e-05,2]
[399454570,1766368238555,-151.0,0.0001,2]
[399454571,1766368238564,-151.0,0.0001,2]
[399454572,1766368238574,-151.0,0.0001,2]
[399454573,1766368238584,-153.80097359,0.0001,2]
[399454574,1766368238593,-2235.14725565,0.0001,2]
[399454575,1766368238603,-304.0,0.00010027,2]
[399454576,1766368238613,-1679.0171,0.00010048,2]
[399454577,1766368238622,-1000.0,0.00010048,2]
[399454578,1766368238632,-1048.1,0.00010104,2]
[399454579,1766368238641,-4266.2,0.00010209,2]
[399454580,1766368238650,-500.0,0.00010221,2]
[399454581,1766368238660,-11815.59,0.00010421,2]
[399454582,1766368238669,-155.66,0.00010433,2]
[399454583,1766368238678,-500.0,0.00010495,2]
[399454584,1766368238688,-412.96,0.00010665,2]
[399454585,1766368238697,-420.0,0.0001072,2]
[399454586,1766368238706,-1680.0,0.0001072,2]
[399454587,1766368238716,-500.0,0.00010769,2]
[399454588,1766368238725,-250.0,0.00010796,2]
[399454589,1766368238735,-255.0,0.00010829,2]
[399454590,1766368238744,-500.0,0.00011043,2]
[399454591,1766368238755,-31398.49970301,0.00011099,2]
[399454592,1766368238764,-31398.49970292,0.00011099,2]
[399454593,1766368238774,-27462.0545782,0.00011099,2]
[399454594,1766368238784,-27462.05457815,0.00011099,2]
[399454595,1766368238793,-983.12,0.00011207,2]
[399454596,1766368238802,-294.51,0.00011233,2]
[399454597,1766368238816,-412.96,0.00011258,2]
[399454598,1766368238826,-500.0,0.00011317,2]
[399454599,1766368238835,-155.66,0.00011381,2]
[399454600,1766368238844,-27462.05457815,0.00011414,2]
[399454601,1766368238855,-31398.49970292,0.00011414,2]
[399454602,1766368238865,-359.51458071,0.00011591,2]
[399454603,1766368238874,-587.0,0.00011792,2]
[399454604,1766368238884,-2351.0,0.00011792,2]
[399454605,1766368238896,-412.96,0.0001185,2]
[399454606,1766368238906,-433.0,0.00011912,2]
[399454607,1766368238915,-6195.96,0.00012087,2]
[399454608,1766368238924,-1194.6,0.00012087,2]
[399454609,1766368238934,-285.46,0.00012113,2]
[399454610,1766368238944,-200.0,0.00012114,2]
[399454611,1766368238954,-16517.22,0.00012114,2]
[399454612,1766368238965,-228.48,0.0001219,2]
[399454613,1766368238975,-27462.05457815,0.00012198,2]
[399454614,1766368238985,-31398.49970292,0.00012198,2]
[399454615,1766368238995,-1852.42,0.00012383,2]
[399454616,1766368239005,-412.96,0.00012443,2]
[399454617,1766368239014,-384.8,0.00012529,2]
[399454618,1766368239024,-500.0,0.00012752,2]
[399454619,1766368239033,-500.0,0.00012752,2]
[399454620,1766368239042,-439.36136932,0.00012752,2]
[399454621,1766368239052,-500.0,0.00012752,2]
[399454622,1766368239062,-500.0,0.00012752,2]
[399454623,1766368239071,-451.10011399,0.00012752,2]
[399454624,1766368239081,-250.0,0.00012851,2]
[399454625,1766368239091,-729.0,0.00012972,2]
[399454626,1766368239100,-3292.0,0.00012972,2]
[399454627,1766368239113,-27462.05457815,0.00012982,2]
[399454628,1766368239123,-31398.49970292,0.00012982,2]
[399454629,1766368239132,-412.96,0.00013035,2]
[399454630,1766368239142,-736.0,0.00013103,2]
[399454631,1766368239152,-412.96,0.00013628,2]
[399454632,1766368239162,-500.0,0.00013643,2]
[399454633,1766368239172,-500.0,0.00013643,2]
[399454634,1766368239182,-161.53823888,0.00013643,2]
[399454635,1766368239191,-500.0,0.00013643,2]
[399454636,1766368239200,-172.65369625,0.00013643,2]
[399454637,1766368239210,-172.81941254,0.00013643,2]
[399454638,1766368239220,-163.15562332,0.00013643,2]
[399454639,1766368239230,-163.76931911,0.00013643,2]
[399454640,1766368239240,-500.37919946,0.00013643,2]
[399454641,1766368239249,-500.0,0.00013643,2]
[399454642,1766368239259,-165.58172588,0.00013643,2]
[399454643,1766368239268,-500.0,0.00013643,2]
[399454644,1766368239277,-500.10468505,0.00013643,2]
[399454645,1766368239287,-500.0,0.00013643,2]
[399454646,1766368239296,-224.11516546,0.00013643,2]
[399454647,1766368239305,-500.0,0.00013643,2]
[399454648,1766368239315,-500.0,0.00013643,2]
[399454649,1766368239324,-167.17091754,0.00013643,2]
[399454650,1766368239333,-176.72157044,0.00013643,2]
[399454651,1766368239343,-500.0,0.00013643,2]
[399454652,1766368239351,-550.36391425,0.00013643,2]
[399454653,1766368239360,-500.0,0.00013643,2]
[399454654,1766368239370,-500.0,0.00013643,2]
[399454655,1766368239380,-500.0,0.00013643,2]
[399454656,1766368239389,-500.0,0.00013643,2]
[399454657,1766368239398,-500.0,0.00013643,2]
[399454658,1766368239408,-500.0,0.00013643,2]
[399454659,1766368239417,-500.0,0.00013643,2]
[399454660,1766368239427,-276.5402013,0.00013643,2]
[399454661,1766368239436,-201.72114218,0.00013643,2]
[399454662,1766368239446,-500.0,0.00013643,2]
[399454663,1766368239455,-500.0,0.00013643,2]
[399454664,1766368239464,-500.0,0.00013643,2]
[399454665,1766368239478,-500.0,0.00013643,2]
[399454666,1766368239489,-500.0,0.00013643,2]
[399454667,1766368239499,-500.0,0.00013643,2]
[399454668,1766368239508,-165.8458301,0.00013643,2]
[399454669,1766368239518,-500.0,0.00013643,2]
[399454670,1766368239528,-500.0,0.00013643,2]
[399454671,1766368239538,-160.27643791,0.00013643,2]
[399454672,1766368239547,-500.0,0.00013643,2]
[399454673,1766368239556,-500.0,0.00013643,2]
[399454674,1766368239567,-500.0,0.00013643,2]
[399454675,1766368239576,-500.0,0.00013643,2]
[399454676,1766368239586,-500.0,0.00013643,2]
[399454677,1766368239595,-500.0,0.00013643,2]
[399454678,1766368239604,-216.339116,0.00013643,2]
[399454679,1766368239613,-500.0,0.00013643,2]
[399454680,1766368239623,-500.0,0.00013643,2]
[399454681,1766368239633,-168.65037374,0.00013643,2]
[399454682,1766368239643,-500.0,0.00013643,2]
[399454683,1766368239653,-179.55665097,0.00013643,2]
[399454684,1766368239663,-165.49824072,0.00013643,2]
[399454685,1766368239672,-2304.72,0.00013643,2]
[399454686,1766368239681,-519.4114212,0.00013698,2]
[399454687,1766368239691,-863.45,0.00013698,2]
[399454688,1766368239704,-863.45,0.00013698,2]
[399454689,1766368239713,-863.45,0.00013698,2]
[399454690,1766368239723,-863.45,0.00013698,2]
[399454691,1766368239733,-863.45,0.00013698,2]
[399454692,1766368239743,-863.45,0.00013698,2]
[399454693,1766368239753,-500.0,0.00013698,2]
[399454694,1766368239762,-500.0,0.00013698,2]
[399454695,1766368239772,-500.0,0.00013698,2]
[399454696,1766368239781,-503.72680128,0.00013698,2]
[399454697,1766368239790,-500.0,0.00013698,2]
[399454698,1766368239800,-500.0,0.00013698,2]
[399454699,1766368239810,-500.0,0.00013698,2]
[399454700,1766368239822,-510.51048737,0.00013698,2]
[399454701,1766368239831,-500.0,0.00013698,2]
[399454702,1766368239840,-500.0,0.00013698,2]
[399454703,1766368239850,-500.0,0.00013698,2]
[399454704,1766368239859,-500.0,0.00013698,2]
[399454705,1766368239869,-500.0,0.00013698,2]
[399454706,1766368239879,-522.94551231,0.00013698,2]
[399454707,1766368239891,-500.0,0.00013698,2]
[399454708,1766368239903,-500.0,0.00013698,2]
[399454709,1766368239913,-500.0,0.00013698,2]
[399454711,1766368239922,-574.81599122,0.00013698,2]
[399454712,1766368239932,-500.0,0.00013698,2]
[399454713,1766368239942,-508.88062699,0.00013698,2]
[399454714,1766368239951,-506.35570593,0.00013698,2]
[399454715,1766368239961,-500.0,0.00013698,2]
[399454716,1766368239971,-500.0,0.00013698,2]
[399454717,1766368239981,-500.0,0.00013698,2]
[399454718,1766368239990,-500.0,0.00013698,2]
[399454719,1766368240000,-500.0,0.00013698,2]
[399454720,1766368240010,-510.54842695,0.00013698,2]
[399454721,1766368240019,-500.0,0.00013698,2]
[399454722,1766368240029,-500.0,0.00013698,2]
[399454723,1766368240039,-500.0,0.00013698,2]
[399454724,1766368240048,-511.45544987,0.00013698,2]
[399454725,1766368240058,-500.0,0.00013698,2]
[399454726,1766368240067,-500.0,0.00013698,2]
[399454727,1766368240077,-500.0,0.00013698,2]
[399454728,1766368240088,-500.0,0.00013698,2]
[399454729,1766368240097,-500.0,0.00013698,2]
[399454730,1766368240109,-240.54492711,0.00013698,2]
[399454731,1766368240119,-500.0,0.00013698,2]
[399454732,1766368240129,-500.0,0.00013698,2]
[399454733,1766368240138,-500.0,0.00013698,2]
[399454734,1766368240148,-500.0,0.00013698,2]
[399454735,1766368240157,-500.0,0.00013698,2]
[399454736,1766368240167,-500.0,0.00013698,2]
[399454737,1766368240177,-500.0,0.00013698,2]
[399454738,1766368240186,-501.05282462,0.00013698,2]
[399454739,1766368240196,-500.0,0.00013698,2]
[399454740,1766368240205,-500.0,0.00013698,2]
[399454741,1766368240214,-500.0,0.00013698,2]
[399454742,1766368240224,-500.0,0.00013698,2]
[399454743,1766368240233,-500.0,0.00013698,2]
[399454744,1766368240243,-500.0,0.00013698,2]
[399454745,1766368240253,-500.0,0.00013698,2]
[399454746,1766368240263,-500.0,0.00013698,2]
[399454747,1766368240272,-500.0,0.00013698,2]
[399454748,1766368240282,-500.0,0.00013698,2]
[399454749,1766368240292,-500.0,0.00013698,2]
[399454750,1766368240303,-502.20097249,0.00013698,2]
[399454751,1766368240312,-500.0,0.00013698,2]
[399454752,1766368240321,-344.92521507,0.00013698,2]
[399454753,1766368240330,-500.0,0.00013698,2]
[399454754,1766368240339,-500.0,0.00013698,2]
[399454755,1766368240349,-500.0,0.00013698,2]
[399454756,1766368240358,-500.0,0.00013698,2]
[399454757,1766368240367,-500.0,0.00013698,2]
[399454758,1766368240376,-500.0,0.00013698,2]
[399454759,1766368240387,-500.0,0.00013698,2]
[399454760,1766368240396,-500.0,0.00013698,2]
[399454762,1766368240405,-500.0,0.00013698,2]
[399454764,1766368240414,-500.0,0.00013698,2]
[399454766,1766368240424,-500.0,0.00013698,2]
[399454767,1766368240433,-500.0,0.00013698,2]
[399454768,1766368240443,-500.0,0.00013698,2]
[399454769,1766368240453,-500.0,0.00013698,2]
[399454770,1766368240463,-500.0,0.00013698,2]
[399454771,1766368240472,-500.0,0.00013698,2]
[399454772,1766368240481,-500.0,0.00013698,2]
[399454773,1766368240500,-508.22926501,0.00013698,2]
[399454774,1766368240511,-500.0,0.00013698,2]
[399454775,1766368240520,-500.0,0.00013698,2]
[399454776,1766368240529,-500.0,0.00013698,2]
[399454777,1766368240538,-500.0,0.00013698,2]
[399454778,1766368240547,-500.0,0.00013698,2]
[399454779,1766368240557,-500.0,0.00013698,2]
[399454780,1766368240567,-500.0,0.00013698,2]
[399454781,1766368240576,-500.0,0.00013698,2]
[399454782,1766368240586,-500.0,0.00013698,2]
[399454783,1766368240595,-500.0,0.00013698,2]
[399454784,1766368240604,-373.89365293,0.00013698,2]
[399454785,1766368240613,-500.0,0.00013698,2]
[399454786,1766368240623,-500.0,0.00013698,2]
[399454787,1766368240632,-500.0,0.00013698,2]
[399454788,1766368240641,-547.81256791,0.00013698,2]
[399454789,1766368240651,-500.0,0.00013698,2]
[399454790,1766368240660,-500.0,0.00013698,2]
[399454791,1766368240670,-500.0,0.00013698,2]
[399454792,1766368240679,-500.0,0.00013698,2]
[399454793,1766368240689,-507.56768352,0.00013698,2]
[399454794,1766368240698,-500.0,0.00013698,2]
[399454795,1766368240708,-500.0,0.00013698,2]
[399454796,1766368240717,-500.0,0.00013698,2]
[399454797,1766368240727,-500.0,0.00013698,2]
[399454798,1766368240737,-517.20935872,0.00013698,2]
[399454799,1766368240746,-500.0,0.00013698,2]
[399454800,1766368240757,-500.0,0.00013698,2]
[399454801,1766368240767,-500.0,0.00013698,2]
[399454802,1766368240776,-500.0,0.00013698,2]
[399454803,1766368240787,-500.0,0.00013698,2]
[399454804,1766368240798,-510.52648478,0.00013698,2]
[399454805,1766368240808,-500.0,0.00013698,2]
[399454806,1766368240820,-500.0,0.00013698,2]
[399454807,1766368240829,-500.0,0.00013698,2]
[399454808,1766368240838,-500.0,0.00013698,2]
[399454809,1766368240848,-508.69771691,0.00013698,2]
[399454810,1766368240858,-500.0,0.00013698,2]
[399454811,1766368240869,-500.0,0.00013698,2]
[399454812,1766368240880,-500.0,0.00013698,2]
[399454813,1766368240890,-500.0,0.00013698,2]
[399454814,1766368240899,-513.1625593,0.00013698,2]
[399454815,1766368240908,-500.0,0.00013698,2]
[399454816,1766368240918,-500.0,0.00013698,2]
[399454817,1766368240927,-516.02053629,0.00013698,2]
[399454818,1766368240936,-500.0,0.00013698,2]
[399454819,1766368240945,-500.0,0.00013698,2]
[399454820,1766368240954,-509.63742065,0.00013698,2]
[399454821,1766368240964,-500.0,0.00013698,2]
[399454822,1766368240973,-281.94007823,0.00013698,2]
[399454823,1766368240982,-500.0,0.00013698,2]
[399454824,1766368240991,-500.0,0.00013698,2]
[399454825,1766368241001,-500.0,0.00013698,2]
[399454826,1766368241010,-500.0,0.00013698,2]
[399454827,1766368241019,-507.5550191,0.00013698,2]
[399454828,1766368241029,-500.0,0.00013698,2]
[399454829,1766368241038,-500.0,0.00013698,2]
[399454830,1766368241051,-500.0,0.00013698,2]
[399454831,1766368241061,-504.51634156,0.00013698,2]
[399454832,1766368241070,-500.0,0.00013698,2]
[399454833,1766368241080,-500.0,0.00013698,2]
[399454834,1766368241090,-500.0,0.00013698,2]
[399454835,1766368241100,-500.0,0.00013698,2]
[399454836,1766368241110,-508.44264372,0.00013698,2]
[399454837,1766368241119,-200.0,0.00013699,2]
[399454838,1766368241129,-15708.21,0.00013699,2]
[399454839,1766368241138,-1000.0,0.00013699,2]
[399454840,1766368241148,-612.93,0.00013699,2]
[399454841,1766368241158,-500.0,0.00013699,2]
[399454842,1766368241167,-500.0,0.00013699,2]
[399454843,1766368241177,-500.0,0.00013699,2]
[399454844,1766368241187,-500.0,0.00013699,2]
[399454845,1766368241196,-500.0,0.00013699,2]
[399454846,1766368241206,-500.0,0.00013699,2]
[399454847,1766368241215,-500.0,0.00013699,2]
[399454848,1766368241225,-500.0,0.00013699,2]
[399454849,1766368241234,-500.0,0.00013699,2]
[399454850,1766368241244,-500.0,0.00013699,2]
[399454851,1766368241253,-500.0,0.00013699,2]
[399454852,1766368241264,-500.0,0.00013699,2]
[399454853,1766368241273,-212.46280064,0.00013699,2]
[399454854,1766368241608,-500.0,0.00013699,2]
[399454855,1766368241617,-500.0,0.00013699,2]
[399454856,1766368241626,-500.0,0.00013699,2]
[399454857,1766368241635,-500.0,0.00013699,2]
[399454858,1766368241644,-500.0,0.00013699,2]
[399454859,1766368241652,-617.6733324,0.00013699,2]
[399454860,1766368241662,-500.0,0.00013699,2]
[399454861,1766368241671,-500.0,0.00013699,2]
[399454862,1766368241679,-500.0,0.00013699,2]
[399454863,1766368241688,-500.0,0.00013699,2]
[399454864,1766368241701,-500.0,0.00013699,2]
[399454865,1766368241710,-500.0,0.00013699,2]
[399454866,1766368241720,-500.0,0.00013699,2]
[399454867,1766368241729,-500.0,0.00013699,2]
[399454868,1766368241738,-500.0,0.00013699,2]
[399454869,1766368241747,-500.0,0.00013699,2]
[399454870,1766368241756,-500.0,0.00013699,2]
[399454871,1766368241766,-500.0,0.00013699,2]
[399454872,1766368241775,-500.0,0.00013699,2]
[399454873,1766368241785,-500.0,0.00013699,2]
[399454874,1766368241794,-500.0,0.00013699,2]
[399454875,1766368241803,-415.08,0.000137,2]
[399454876,1766368241819,-415.08,0.000137,2]
[399454877,1766368241828,-415.08,0.000137,2]
[399454878,1766368241837,-415.08,0.000137,2]
[399454879,1766368241846,-415.08,0.000137,2]
[399454880,1766368241856,-151.0,0.00013762,2]